[Event "Early-Titled-Tuesday-Blitz-November-28-2023"]
[Site "Chess.com"]
[Date "2023.11.28"]
[Round "5"]
[White "Aleksandar-Topalov"]
[Black "noblerone"]
[Result "1-0"]
[WhiteElo "2387"]
[BlackElo "2514"]
[TimeControl "180+1"]
[EndTime "8:57:31 PST"]
[Termination "Aleksandar-Topalov won on time"]

1. b3 {[%clk 0:03:00.9]} 1... d5 {[%clk 0:02:58.6]} 2. Bb2 {[%clk 0:03:01]} 2...
Nf6 {[%clk 0:02:58]} 3. Nf3 {[%clk 0:03:00.8]} 3... Bg4 {[%clk 0:02:57.2]} 4. g3
{[%clk 0:02:59.1]} 4... Bxf3 {[%clk 0:02:55.8]} 5. exf3 {[%clk 0:02:59.2]} 5...
e6 {[%clk 0:02:51.7]} 6. d4 {[%clk 0:02:58.8]} 6... h5 {[%clk 0:02:46.9]} 7. h4
{[%clk 0:02:57.1]} 7... Nbd7 {[%clk 0:02:44.6]} 8. Bd3 {[%clk 0:02:56.9]} 8...
c6 {[%clk 0:02:43.7]} 9. O-O {[%clk 0:02:56.4]} 9... Bd6 {[%clk 0:02:44]} 10.
Nd2 {[%clk 0:02:43.7]} 10... Qc7 {[%clk 0:02:23.9]} 11. Kg2 {[%clk 0:02:41.9]}
11... O-O-O {[%clk 0:02:12.4]} 12. f4 {[%clk 0:02:40.9]} 12... Ng4 {[%clk
0:02:10.6]} 13. c4 {[%clk 0:02:33.6]} 13... f6 {[%clk 0:02:05]} 14. Nf3 {[%clk
0:02:31.9]} 14... Kb8 {[%clk 0:02:02.7]} 15. Re1 {[%clk 0:02:31.5]} 15... Rde8
{[%clk 0:02:01]} 16. Rc1 {[%clk 0:02:12.6]} 16... Bb4 {[%clk 0:01:56]} 17. Re2
{[%clk 0:02:09.3]} 17... dxc4 {[%clk 0:01:45.8]} 18. bxc4 {[%clk 0:02:06.9]}
18... Re7 {[%clk 0:01:23]} 19. Rb1 {[%clk 0:02:01.8]} 19... Rd8 {[%clk 0:01:19]}
20. Qb3 {[%clk 0:01:58.4]} 20... Ba5 {[%clk 0:01:10.8]} 21. Ba3 {[%clk
0:01:55.4]} 21... Ree8 {[%clk 0:01:07.7]} 22. Bg6 {[%clk 0:01:52.2]} 22... Ka8
{[%clk 0:00:52.6]} 23. Bxh5 {[%clk 0:01:46.3]} 23... Nh6 {[%clk 0:00:42.8]} 24.
Bxe8 {[%clk 0:01:44.9]} 24... Rxe8 {[%clk 0:00:43.7]} 25. d5 {[%clk 0:01:41.4]}
25... e5 {[%clk 0:00:41.9]} 26. fxe5 {[%clk 0:01:39.8]} 26... fxe5 {[%clk
0:00:38.8]} 27. Qa4 {[%clk 0:01:35.3]} 27... e4 {[%clk 0:00:35.7]} 28. dxc6
{[%clk 0:01:33.5]} 28... exf3+ {[%clk 0:00:35.1]} 29. Kxf3 {[%clk 0:01:33.5]}
29... Rxe2 {[%clk 0:00:31.8]} 30. Kxe2 {[%clk 0:01:33.4]} 30... Qxc6 {[%clk
0:00:21.3]} 31. Qxc6 {[%clk 0:01:33.2]} 31... bxc6 {[%clk 0:00:22.2]} 32. Bd6
{[%clk 0:01:32.4]} 32... Bb6 {[%clk 0:00:20.8]} 33. f3 {[%clk 0:01:26.8]} 33...
Nf5 {[%clk 0:00:21]} 34. Bf4 {[%clk 0:00:54.7]} 34... Nd4+ {[%clk 0:00:20.7]}
35. Ke3 {[%clk 0:00:50]} 35... Ne6+ {[%clk 0:00:15.1]} 36. Ke4 {[%clk
0:00:49.4]} 36... Ndc5+ {[%clk 0:00:15.6]} 37. Kf5 {[%clk 0:00:49.1]} 37... Nd4+
{[%clk 0:00:10.3]} 38. Kg6 {[%clk 0:00:47.7]} 38... Nce6 {[%clk 0:00:06.6]} 39.
Be5 {[%clk 0:00:45.8]} 39... Nxf3 {[%clk 0:00:04.4]} 40. Bxg7 {[%clk 0:00:45.7]}
40... Kb7 {[%clk 0:00:01.5]} 41. h5 {[%clk 0:00:46.1]} 1-0

[Event "Early-Titled-Tuesday-Blitz-November-28-2023"]
[Site "Chess.com"]
[Date "2023.11.28"]
[Round "5"]
[White "LimeInTheCoconut"]
[Black "jamengrand"]
[Result "0-1"]
[WhiteElo "2401"]
[BlackElo "2258"]
[TimeControl "180+1"]
[EndTime "8:57:31 PST"]
[Termination "jamengrand won on time"]

1. e4 {[%clk 0:03:00.9]} 1... Nc6 {[%clk 0:02:59.6]} 2. Nf3 {[%clk 0:03:00.6]}
2... d6 {[%clk 0:02:59.4]} 3. d4 {[%clk 0:03:00.2]} 3... Nf6 {[%clk 0:02:59.8]}
4. d5 {[%clk 0:02:59.5]} 4... Nb8 {[%clk 0:02:58.6]} 5. Nc3 {[%clk 0:02:40.8]}
5... g6 {[%clk 0:02:57]} 6. Bc4 {[%clk 0:02:28.3]} 6... Bg7 {[%clk 0:02:56.2]}
7. O-O {[%clk 0:02:28.3]} 7... O-O {[%clk 0:02:56.1]} 8. a4 {[%clk 0:02:27.6]}
8... c6 {[%clk 0:02:56.2]} 9. dxc6 {[%clk 0:02:27.9]} 9... Nxc6 {[%clk
0:02:55.8]} 10. h3 {[%clk 0:02:20]} 10... Be6 {[%clk 0:02:53.2]} 11. Qe2 {[%clk
0:02:15.4]} 11... Bxc4 {[%clk 0:02:52.6]} 12. Qxc4 {[%clk 0:02:15.2]} 12... Rc8
{[%clk 0:02:53.2]} 13. Qb5 {[%clk 0:02:12.3]} 13... Nd7 {[%clk 0:02:26.5]} 14.
Qxb7 {[%clk 0:01:54.7]} 14... Nc5 {[%clk 0:02:25.8]} 15. Qb5 {[%clk 0:01:51.2]}
15... Qd7 {[%clk 0:02:12.7]} 16. Qe2 {[%clk 0:01:44.1]} 16... Nb4 {[%clk
0:01:58.9]} 17. Nd5 {[%clk 0:01:21.8]} 17... Nxd5 {[%clk 0:01:57.6]} 18. exd5
{[%clk 0:01:22.7]} 18... Nxa4 {[%clk 0:01:55.8]} 19. c3 {[%clk 0:00:56.1]} 19...
Rc7 {[%clk 0:01:49.9]} 20. Be3 {[%clk 0:00:54]} 20... Rb8 {[%clk 0:01:47.2]} 21.
Ra2 {[%clk 0:00:47.8]} 21... Rcb7 {[%clk 0:01:46.3]} 22. Bc1 {[%clk 0:00:41.7]}
22... h6 {[%clk 0:01:22.4]} 23. Qc2 {[%clk 0:00:40.7]} 23... Rb3 {[%clk
0:01:17.7]} 24. Nd2 {[%clk 0:00:35.2]} 24... Nc5 {[%clk 0:01:12.3]} 25. Nxb3
{[%clk 0:00:34]} 25... Nxb3 {[%clk 0:01:11.9]} 26. Be3 {[%clk 0:00:31.1]} 26...
Rb7 {[%clk 0:01:09.5]} 27. Ra3 {[%clk 0:00:20.8]} 27... Qb5 {[%clk 0:01:06.8]}
28. c4 {[%clk 0:00:16]} 28... Qb4 {[%clk 0:01:02.1]} 29. Rxa7 {[%clk 0:00:15.6]}
29... Rxa7 {[%clk 0:00:56.2]} 30. Bxa7 {[%clk 0:00:16.5]} 30... Nd2 {[%clk
0:00:53.8]} 31. Rc1 {[%clk 0:00:13.4]} 31... Bxb2 {[%clk 0:00:49.3]} 32. Rd1
{[%clk 0:00:11]} 32... Nxc4 {[%clk 0:00:48.3]} 33. Qe4 {[%clk 0:00:09.3]} 33...
Qb3 {[%clk 0:00:40.5]} 34. Rb1 {[%clk 0:00:08.3]} 34... Nd2 {[%clk 0:00:40.1]}
35. Qxe7 {[%clk 0:00:04.3]} 35... Nxb1 {[%clk 0:00:38.4]} 0-1

[Event "Early-Titled-Tuesday-Blitz-November-28-2023"]
[Site "Chess.com"]
[Date "2023.11.28"]
[Round "5"]
[White "Niilo1"]
[Black "brm72"]
[Result "1-0"]
[WhiteElo "2313"]
[BlackElo "2525"]
[TimeControl "180+1"]
[EndTime "8:57:32 PST"]
[Termination "Niilo1 won on time"]

1. e4 {[%clk 0:03:00.9]} 1... c5 {[%clk 0:02:59.9]} 2. Nf3 {[%clk 0:03:01]} 2...
d6 {[%clk 0:03:00.2]} 3. d4 {[%clk 0:03:01.1]} 3... cxd4 {[%clk 0:03:01.1]} 4.
Nxd4 {[%clk 0:03:02]} 4... Nf6 {[%clk 0:03:01.7]} 5. Nc3 {[%clk 0:03:02.2]} 5...
a6 {[%clk 0:03:02.4]} 6. Qd3 {[%clk 0:02:58.8]} 6... Nbd7 {[%clk 0:02:35]} 7.
Be2 {[%clk 0:02:58.4]} 7... b5 {[%clk 0:02:21]} 8. a4 {[%clk 0:02:57.9]} 8...
Nc5 {[%clk 0:02:05.9]} 9. Qe3 {[%clk 0:02:57.2]} 9... b4 {[%clk 0:02:03.5]} 10.
Nd5 {[%clk 0:02:57.6]} 10... Nfxe4 {[%clk 0:01:54.2]} 11. a5 {[%clk 0:02:45.1]}
11... Bb7 {[%clk 0:01:49]} 12. Nb6 {[%clk 0:02:45]} 12... Rb8 {[%clk 0:01:48.7]}
13. c3 {[%clk 0:02:03.1]} 13... bxc3 {[%clk 0:01:47.2]} 14. bxc3 {[%clk
0:02:04]} 14... g6 {[%clk 0:01:41.5]} 15. Rb1 {[%clk 0:02:00.8]} 15... Bg7
{[%clk 0:01:39.6]} 16. f3 {[%clk 0:01:59.6]} 16... Nf6 {[%clk 0:01:34.3]} 17. c4
{[%clk 0:01:45.8]} 17... O-O {[%clk 0:01:33.1]} 18. O-O {[%clk 0:01:44.6]} 18...
Qc7 {[%clk 0:01:12.8]} 19. Rd1 {[%clk 0:01:42.8]} 19... Rfe8 {[%clk 0:01:07.9]}
20. Nb3 {[%clk 0:01:40.8]} 20... Nfd7 {[%clk 0:01:05.2]} 21. Nxd7 {[%clk
0:01:20.8]} 21... Nxd7 {[%clk 0:01:03.9]} 22. Ba3 {[%clk 0:01:21.1]} 22... Ne5
{[%clk 0:00:46.7]} 23. c5 {[%clk 0:01:19.3]} 23... dxc5 {[%clk 0:00:45.8]} 24.
Bxc5 {[%clk 0:01:14.5]} 24... Qc6 {[%clk 0:00:36.1]} 25. Rdc1 {[%clk 0:01:05.8]}
25... Qa4 {[%clk 0:00:32.4]} 26. Bb6 {[%clk 0:01:00.4]} 26... Rbc8 {[%clk
0:00:29.1]} 27. Nc5 {[%clk 0:00:59.9]} 27... Rxc5 {[%clk 0:00:18.3]} 28. Rxc5
{[%clk 0:00:55.8]} 28... Nd7 {[%clk 0:00:13.7]} 29. Rc4 {[%clk 0:00:42.4]} 29...
Qa2 {[%clk 0:00:13.6]} 30. Qb3 {[%clk 0:00:40.1]} 30... Qxe2 {[%clk 0:00:12.8]}
31. Rc7 {[%clk 0:00:35]} 31... Nxb6 {[%clk 0:00:10.3]} 32. axb6 {[%clk
0:00:35.2]} 32... Bd4+ {[%clk 0:00:06.7]} 33. Kh1 {[%clk 0:00:35.5]} 33... e5
{[%clk 0:00:03.5]} 34. Qxf7+ {[%clk 0:00:33.9]} 1-0

[Event "Early-Titled-Tuesday-Blitz-November-28-2023"]
[Site "Chess.com"]
[Date "2023.11.28"]
[Round "5"]
[White "Tobias_Koelle"]
[Black "IwkooO"]
[Result "0-1"]
[WhiteElo "2846"]
[BlackElo "2663"]
[TimeControl "180+1"]
[EndTime "8:57:33 PST"]
[Termination "IwkooO won on time"]

1. d4 {[%clk 0:03:00.9]} 1... Nf6 {[%clk 0:02:59.1]} 2. Nf3 {[%clk 0:02:56.2]}
2... g6 {[%clk 0:02:59.2]} 3. g3 {[%clk 0:02:55.7]} 3... Bg7 {[%clk 0:02:59.8]}
4. Bg2 {[%clk 0:02:55.9]} 4... d5 {[%clk 0:03:00.6]} 5. O-O {[%clk 0:02:56.3]}
5... O-O {[%clk 0:03:00.5]} 6. c4 {[%clk 0:02:56.3]} 6... dxc4 {[%clk
0:03:01.4]} 7. Na3 {[%clk 0:02:54.9]} 7... c3 {[%clk 0:03:01.5]} 8. bxc3 {[%clk
0:02:55.8]} 8... c5 {[%clk 0:03:02.1]} 9. Bf4 {[%clk 0:02:55.4]} 9... Nc6 {[%clk
0:02:57.3]} 10. e3 {[%clk 0:02:52.8]} 10... Nd5 {[%clk 0:02:56.6]} 11. Qb3
{[%clk 0:02:45.1]} 11... Nxf4 {[%clk 0:02:51.1]} 12. gxf4 {[%clk 0:02:46]} 12...
Qa5 {[%clk 0:02:48.4]} 13. Nc4 {[%clk 0:02:44.2]} 13... Qa6 {[%clk 0:02:48.5]}
14. Nfe5 {[%clk 0:02:40.3]} 14... Nxe5 {[%clk 0:02:41.5]} 15. Nxe5 {[%clk
0:02:41.2]} 15... Bxe5 {[%clk 0:02:23]} 16. fxe5 {[%clk 0:02:39.3]} 16... Rb8
{[%clk 0:02:23.3]} 17. Rfd1 {[%clk 0:02:18.3]} 17... Bg4 {[%clk 0:02:22]} 18. f3
{[%clk 0:02:15.7]} 18... Bd7 {[%clk 0:02:19.6]} 19. d5 {[%clk 0:02:10.3]} 19...
Ba4 {[%clk 0:02:19.3]} 20. Qb2 {[%clk 0:01:57.5]} 20... Bxd1 {[%clk 0:02:17.6]}
21. Rxd1 {[%clk 0:01:58.4]} 21... Rfd8 {[%clk 0:02:17.5]} 22. e4 {[%clk
0:01:56.8]} 22... b5 {[%clk 0:02:15.7]} 23. Bf1 {[%clk 0:01:52.4]} 23... Qb6
{[%clk 0:02:15.9]} 24. Kg2 {[%clk 0:01:45.1]} 24... a5 {[%clk 0:02:15.3]} 25. f4
{[%clk 0:01:43.8]} 25... c4 {[%clk 0:02:13.3]} 26. f5 {[%clk 0:01:42]} 26... Qe3
{[%clk 0:02:12.4]} 27. Qe2 {[%clk 0:01:33.5]} 27... Qxc3 {[%clk 0:02:12.3]} 28.
e6 {[%clk 0:01:29.7]} 28... fxe6 {[%clk 0:02:07.6]} 29. fxe6 {[%clk 0:01:29.1]}
29... Qe5 {[%clk 0:02:05.9]} 30. a4 {[%clk 0:01:09.6]} 30... bxa4 {[%clk
0:02:03.5]} 31. Qxc4 {[%clk 0:01:09.5]} 31... Rb2+ {[%clk 0:02:02]} 32. Be2
{[%clk 0:01:10]} 32... Rf8 {[%clk 0:01:56.2]} 33. d6 {[%clk 0:00:21.9]} 33...
Qg5+ {[%clk 0:01:49.4]} 34. Kh1 {[%clk 0:00:22.3]} 34... Rf2 {[%clk 0:01:39.9]}
35. Qc8+ {[%clk 0:00:21.6]} 35... Kg7 {[%clk 0:01:39.8]} 36. Qc3+ {[%clk
0:00:21.6]} 36... Kh6 {[%clk 0:01:24.1]} 37. Qh3+ {[%clk 0:00:19.4]} 37... Kg7
{[%clk 0:01:24.4]} 38. d7 {[%clk 0:00:12.2]} 38... Rb8 {[%clk 0:01:11.5]} 39.
Qc3+ {[%clk 0:00:03.8]} 39... Qf6 {[%clk 0:01:11.7]} 40. Qxf6+ {[%clk
0:00:03.9]} 40... Kxf6 {[%clk 0:01:10.5]} 41. Bg4 {[%clk 0:00:01.7]} 41... Rd8
{[%clk 0:01:10.7]} 42. Rc1 {[%clk 0:00:02.5]} 42... Rb2 {[%clk 0:01:07.9]} 43.
Rc5 {[%clk 0:00:01.8]} 43... a3 {[%clk 0:01:07.2]} 44. e5+ {[%clk 0:00:02.1]}
44... Kg5 {[%clk 0:01:07]} 45. Rc8 {[%clk 0:00:02.7]} 45... a2 {[%clk
0:01:04.9]} 0-1

[Event "Early-Titled-Tuesday-Blitz-November-28-2023"]
[Site "Chess.com"]
[Date "2023.11.28"]
[Round "5"]
[White "szachuspl"]
[Black "Magila31"]
[Result "1-0"]
[WhiteElo "2524"]
[BlackElo "2359"]
[TimeControl "180+1"]
[EndTime "8:57:34 PST"]
[Termination "szachuspl won on time"]

1. d4 {[%clk 0:02:59.1]} 1... Nf6 {[%clk 0:02:59]} 2. c4 {[%clk 0:02:58.2]} 2...
g6 {[%clk 0:02:58.5]} 3. Nc3 {[%clk 0:02:58.3]} 3... Bg7 {[%clk 0:02:58.1]} 4.
e4 {[%clk 0:02:58.5]} 4... O-O {[%clk 0:02:58.1]} 5. Be2 {[%clk 0:02:58.5]} 5...
d6 {[%clk 0:02:57.9]} 6. Bg5 {[%clk 0:02:58.4]} 6... c5 {[%clk 0:02:55.6]} 7. d5
{[%clk 0:02:58.5]} 7... e6 {[%clk 0:02:50.6]} 8. Qd2 {[%clk 0:02:57.3]} 8...
exd5 {[%clk 0:02:49.6]} 9. cxd5 {[%clk 0:02:57.5]} 9... Re8 {[%clk 0:02:47]} 10.
f3 {[%clk 0:02:57.6]} 10... Nbd7 {[%clk 0:02:44.1]} 11. Nh3 {[%clk 0:02:56.8]}
11... a6 {[%clk 0:02:40.3]} 12. a4 {[%clk 0:02:56.3]} 12... Qe7 {[%clk
0:02:30.7]} 13. Nf2 {[%clk 0:02:55.5]} 13... Qf8 {[%clk 0:02:25.1]} 14. O-O
{[%clk 0:02:53.5]} 14... h6 {[%clk 0:02:21.5]} 15. Be3 {[%clk 0:02:53.7]} 15...
h5 {[%clk 0:02:12.1]} 16. h3 {[%clk 0:02:45.3]} 16... Nh7 {[%clk 0:02:08]} 17.
Rfe1 {[%clk 0:02:36.7]} 17... f5 {[%clk 0:01:54.2]} 18. a5 {[%clk 0:02:35.4]}
18... Ndf6 {[%clk 0:01:48.4]} 19. Bf4 {[%clk 0:02:29.7]} 19... h4 {[%clk
0:01:36.4]} 20. Bd3 {[%clk 0:02:19.4]} 20... Nh5 {[%clk 0:01:35.5]} 21. Ra4
{[%clk 0:01:39]} 21... Nxf4 {[%clk 0:01:22.5]} 22. Qxf4 {[%clk 0:01:38.5]} 22...
g5 {[%clk 0:01:20.2]} 23. Qd2 {[%clk 0:01:36]} 23... f4 {[%clk 0:01:17]} 24. e5
{[%clk 0:01:31.9]} 24... Bxe5 {[%clk 0:01:12.4]} 25. Nfe4 {[%clk 0:01:27.9]}
25... Bd7 {[%clk 0:01:09.6]} 26. Ra3 {[%clk 0:01:24.3]} 26... Bd4+ {[%clk
0:01:02.9]} 27. Kh2 {[%clk 0:01:23.1]} 27... Be5 {[%clk 0:00:48.8]} 28. Rb3
{[%clk 0:01:22.8]} 28... Rab8 {[%clk 0:00:21.5]} 29. Rb6 {[%clk 0:01:22.5]}
29... Qe7 {[%clk 0:00:19.2]} 30. Qc2 {[%clk 0:01:16]} 30... Nf6 {[%clk
0:00:17.2]} 31. Nxg5 {[%clk 0:01:10.6]} 31... Nxd5 {[%clk 0:00:16.8]} 32. Bh7+
{[%clk 0:00:38.7]} 32... Kh8 {[%clk 0:00:16.4]} 33. Qg6 {[%clk 0:00:38.2]} 33...
Be6 {[%clk 0:00:09.2]} 34. Rxe5 {[%clk 0:00:33.3]} 34... dxe5 {[%clk 0:00:01.7]}
35. Rxe6 {[%clk 0:00:32.8]} 35... Qg7 {[%clk 0:00:02.1]} 36. Nf7+ {[%clk
0:00:31.7]} 1-0

[Event "Early-Titled-Tuesday-Blitz-November-28-2023"]
[Site "Chess.com"]
[Date "2023.11.28"]
[Round "5"]
[White "Felix-Rose"]
[Black "tandercat"]
[Result "1-0"]
[WhiteElo "2348"]
[BlackElo "2069"]
[TimeControl "180+1"]
[EndTime "8:57:36 PST"]
[Termination "Felix-Rose won on time"]

1. e4 {[%clk 0:03:00.4]} 1... c5 {[%clk 0:02:59.3]} 2. Nf3 {[%clk 0:03:00.6]}
2... Nc6 {[%clk 0:02:59]} 3. d4 {[%clk 0:03:00.7]} 3... cxd4 {[%clk 0:02:59.6]}
4. Nxd4 {[%clk 0:03:01.6]} 4... e5 {[%clk 0:02:59.8]} 5. Nb5 {[%clk 0:03:01.7]}
5... d6 {[%clk 0:02:59]} 6. N1c3 {[%clk 0:03:01.7]} 6... a6 {[%clk 0:02:59.5]}
7. Na3 {[%clk 0:03:01.8]} 7... Be7 {[%clk 0:02:59.9]} 8. Nc4 {[%clk 0:03:00.8]}
8... b5 {[%clk 0:02:58.7]} 9. Ne3 {[%clk 0:03:01]} 9... Nf6 {[%clk 0:02:59.2]}
10. Bd3 {[%clk 0:02:55.9]} 10... O-O {[%clk 0:02:57.6]} 11. O-O {[%clk
0:02:54.9]} 11... Nb4 {[%clk 0:02:48.9]} 12. a3 {[%clk 0:02:52.7]} 12... Nxd3
{[%clk 0:02:46.6]} 13. Qxd3 {[%clk 0:02:53.6]} 13... Be6 {[%clk 0:02:43.6]} 14.
Ned5 {[%clk 0:02:52.7]} 14... Bxd5 {[%clk 0:02:34.5]} 15. Nxd5 {[%clk
0:02:52.6]} 15... Nxd5 {[%clk 0:02:12.5]} 16. Qxd5 {[%clk 0:02:53.5]} 16... Rc8
{[%clk 0:02:12.3]} 17. c3 {[%clk 0:02:45.4]} 17... Rc5 {[%clk 0:02:03.7]} 18.
Qd3 {[%clk 0:02:44.3]} 18... Qc8 {[%clk 0:02:01.4]} 19. Be3 {[%clk 0:02:38.6]}
19... Rc4 {[%clk 0:01:58.9]} 20. Rfd1 {[%clk 0:02:37.1]} 20... Qc6 {[%clk
0:01:47.1]} 21. f3 {[%clk 0:02:36.3]} 21... h6 {[%clk 0:01:40.4]} 22. Rd2 {[%clk
0:02:26]} 22... Rc8 {[%clk 0:01:26.2]} 23. Rad1 {[%clk 0:02:24.5]} 23... a5
{[%clk 0:01:19.3]} 24. Qd5 {[%clk 0:02:21.6]} 24... b4 {[%clk 0:00:57.2]} 25.
Qxc6 {[%clk 0:02:02.6]} 25... R8xc6 {[%clk 0:00:50.3]} 26. cxb4 {[%clk
0:02:02.7]} 26... axb4 {[%clk 0:00:49.6]} 27. a4 {[%clk 0:01:57]} 27... b3
{[%clk 0:00:48.6]} 28. Rd3 {[%clk 0:01:47.8]} 28... Rxa4 {[%clk 0:00:40]} 29.
Rxb3 {[%clk 0:01:47.9]} 29... Rc2 {[%clk 0:00:19.2]} 30. Rd2 {[%clk 0:01:40.2]}
30... Ra1+ {[%clk 0:00:15.6]} 31. Kf2 {[%clk 0:01:40.2]} 31... Rxd2+ {[%clk
0:00:12.2]} 32. Bxd2 {[%clk 0:01:41.1]} 32... Rd1 {[%clk 0:00:11.1]} 33. Bc3
{[%clk 0:01:40]} 33... d5 {[%clk 0:00:09]} 34. Ke2 {[%clk 0:01:34.2]} 34... Rg1
{[%clk 0:00:07.8]} 35. Kf2 {[%clk 0:01:33.7]} 35... Rd1 {[%clk 0:00:07]} 36.
Bxe5 {[%clk 0:01:32.7]} 36... dxe4 {[%clk 0:00:06.5]} 37. fxe4 {[%clk 0:01:32]}
37... Rd2+ {[%clk 0:00:06]} 38. Kf3 {[%clk 0:01:30.4]} 38... Bg5 {[%clk
0:00:02.8]} 39. Rb8+ {[%clk 0:01:19.1]} 39... Kh7 {[%clk 0:00:02.9]} 40. Rb7
{[%clk 0:01:17.2]} 40... Kg6 {[%clk 0:00:02.1]} 41. b4 {[%clk 0:01:03.5]} 41...
f6 {[%clk 0:00:01.1]} 42. Bg3 {[%clk 0:00:55.1]} 1-0

[Event "Early-Titled-Tuesday-Blitz-November-28-2023"]
[Site "Chess.com"]
[Date "2023.11.28"]
[Round "5"]
[White "Tartody"]
[Black "jcibarra"]
[Result "0-1"]
[WhiteElo "2614"]
[BlackElo "2906"]
[TimeControl "180+1"]
[EndTime "8:57:37 PST"]
[Termination "jcibarra won on time"]

1. g3 {[%clk 0:03:00.3]} 1... d5 {[%clk 0:02:59.4]} 2. Bg2 {[%clk 0:03:00.9]}
2... g6 {[%clk 0:02:59.8]} 3. d4 {[%clk 0:03:00.3]} 3... Nf6 {[%clk 0:02:57.3]}
4. c3 {[%clk 0:03:00.1]} 4... Bg7 {[%clk 0:02:56.8]} 5. Nf3 {[%clk 0:03:00.5]}
5... O-O {[%clk 0:02:57.4]} 6. O-O {[%clk 0:03:01.1]} 6... c5 {[%clk 0:02:52.7]}
7. Ne5 {[%clk 0:02:58.1]} 7... Nc6 {[%clk 0:02:43.8]} 8. Nxc6 {[%clk 0:02:42.7]}
8... bxc6 {[%clk 0:02:43.6]} 9. dxc5 {[%clk 0:02:43.6]} 9... Ba6 {[%clk
0:02:07.7]} 10. Re1 {[%clk 0:02:39.9]} 10... e5 {[%clk 0:02:04.2]} 11. Na3
{[%clk 0:02:13.4]} 11... Qe7 {[%clk 0:02:01.2]} 12. b4 {[%clk 0:02:03.2]} 12...
Ne4 {[%clk 0:01:47.3]} 13. c4 {[%clk 0:01:23.7]} 13... Rad8 {[%clk 0:01:11.2]}
14. cxd5 {[%clk 0:01:22.2]} 14... cxd5 {[%clk 0:01:12.1]} 15. Bxe4 {[%clk
0:01:14.5]} 15... dxe4 {[%clk 0:01:12.3]} 16. Qa4 {[%clk 0:01:13]} 16... Bc8
{[%clk 0:01:07.8]} 17. Nc4 {[%clk 0:01:10.2]} 17... f5 {[%clk 0:01:01]} 18. Nd6
{[%clk 0:01:08.5]} 18... Be6 {[%clk 0:01:01.7]} 19. b5 {[%clk 0:01:03.5]} 19...
h5 {[%clk 0:00:50.6]} 20. h4 {[%clk 0:00:36.4]} 20... e3 {[%clk 0:00:43.3]} 21.
Bxe3 {[%clk 0:00:16.1]} 21... f4 {[%clk 0:00:43.9]} 22. Bd2 {[%clk 0:00:15.3]}
22... Bd5 {[%clk 0:00:44.3]} 23. f3 {[%clk 0:00:10.7]} 23... g5 {[%clk 0:00:31]}
24. Kg2 {[%clk 0:00:06.7]} 24... g4 {[%clk 0:00:30.3]} 25. Rad1 {[%clk
0:00:04.4]} 25... Qe6 {[%clk 0:00:26.9]} 26. Bc1 {[%clk 0:00:04.3]} 26... gxf3+
{[%clk 0:00:26.8]} 27. exf3 {[%clk 0:00:05.2]} 27... Bxf3+ {[%clk 0:00:20.1]}
28. Kg1 {[%clk 0:00:01.1]} 28... Bxd1 {[%clk 0:00:10.9]} 0-1

[Event "Early-Titled-Tuesday-Blitz-November-28-2023"]
[Site "Chess.com"]
[Date "2023.11.28"]
[Round "5"]
[White "Rakhmanov_Aleksandr"]
[Black "FontVella8"]
[Result "1-0"]
[WhiteElo "2838"]
[BlackElo "2599"]
[TimeControl "180+1"]
[EndTime "8:57:37 PST"]
[Termination "Rakhmanov_Aleksandr won by resignation"]

1. e4 {[%clk 0:03:00.9]} 1... c6 {[%clk 0:02:59]} 2. Nf3 {[%clk 0:03:00.8]} 2...
d5 {[%clk 0:02:59.9]} 3. Nc3 {[%clk 0:03:01.5]} 3... dxe4 {[%clk 0:02:59.8]} 4.
Nxe4 {[%clk 0:03:02.4]} 4... Nf6 {[%clk 0:03:00.5]} 5. Qe2 {[%clk 0:03:02.4]}
5... Nxe4 {[%clk 0:03:00.9]} 6. Qxe4 {[%clk 0:03:03.3]} 6... Qa5 {[%clk
0:03:01.3]} 7. Bc4 {[%clk 0:03:02.3]} 7... Bf5 {[%clk 0:03:01.1]} 8. Qf4 {[%clk
0:02:56.8]} 8... e6 {[%clk 0:02:59.5]} 9. O-O {[%clk 0:02:55.3]} 9... Nd7 {[%clk
0:02:58]} 10. c3 {[%clk 0:02:51.7]} 10... Qc5 {[%clk 0:02:57.4]} 11. Bb3 {[%clk
0:02:35.4]} 11... Bd6 {[%clk 0:02:56.8]} 12. Qh4 {[%clk 0:02:35.5]} 12... O-O
{[%clk 0:02:47.2]} 13. d4 {[%clk 0:02:35.2]} 13... Qb6 {[%clk 0:02:46.2]} 14.
Re1 {[%clk 0:02:35.6]} 14... Qc7 {[%clk 0:02:41.5]} 15. Bg5 {[%clk 0:02:33.2]}
15... Rfe8 {[%clk 0:02:29.2]} 16. Rad1 {[%clk 0:02:32.8]} 16... h6 {[%clk
0:02:27.4]} 17. Bc1 {[%clk 0:02:30.9]} 17... Qd8 {[%clk 0:02:19.3]} 18. Qxd8
{[%clk 0:02:26.3]} 18... Raxd8 {[%clk 0:02:20.2]} 19. h3 {[%clk 0:02:25.7]}
19... g5 {[%clk 0:02:12.9]} 20. g4 {[%clk 0:02:24.2]} 20... Bg6 {[%clk
0:02:10.3]} 21. h4 {[%clk 0:02:24.8]} 21... h5 {[%clk 0:01:55.5]} 22. Bxg5
{[%clk 0:02:13]} 22... Be7 {[%clk 0:01:06.2]} 23. Bxe7 {[%clk 0:02:09]} 23...
Rxe7 {[%clk 0:01:07.1]} 24. g5 {[%clk 0:02:08.4]} 24... Bf5 {[%clk 0:01:07.4]}
25. Ne5 {[%clk 0:02:07.8]} 25... Nxe5 {[%clk 0:01:07.2]} 26. Rxe5 {[%clk
0:02:08.7]} 26... Kg7 {[%clk 0:01:03.7]} 27. Rde1 {[%clk 0:02:08.7]} 27... Red7
{[%clk 0:01:03.8]} 28. Kh2 {[%clk 0:02:08.1]} 28... Kg6 {[%clk 0:01:01.7]} 29.
Kg3 {[%clk 0:02:08.3]} 29... b6 {[%clk 0:01:01.8]} 30. R1e2 {[%clk 0:01:55.6]}
30... c5 {[%clk 0:00:58.1]} 31. dxc5 {[%clk 0:01:54.8]} 31... bxc5 {[%clk
0:00:59]} 32. Rxc5 {[%clk 0:01:54.9]} 32... Rd3+ {[%clk 0:00:57.1]} 33. f3
{[%clk 0:01:51.3]} 33... Rd2 {[%clk 0:00:28.7]} 34. Rce5 {[%clk 0:01:44]} 34...
f6 {[%clk 0:00:22.3]} 35. gxf6 {[%clk 0:01:37.1]} 35... Kxf6 {[%clk 0:00:23.2]}
36. Kf2 {[%clk 0:01:26.3]} 36... Rxe2+ {[%clk 0:00:21.6]} 37. Rxe2 {[%clk
0:01:25.6]} 37... e5 {[%clk 0:00:20.1]} 38. Bc2 {[%clk 0:01:21.2]} 38... Be6
{[%clk 0:00:12.8]} 39. b3 {[%clk 0:01:21.7]} 39... Rc8 {[%clk 0:00:10.5]} 40. c4
{[%clk 0:01:22.2]} 40... Rd8 {[%clk 0:00:11.2]} 41. Be4 {[%clk 0:01:22.1]} 41...
Rd4 {[%clk 0:00:11.3]} 42. Ke1 {[%clk 0:01:19.2]} 42... Rd8 {[%clk 0:00:05.7]}
43. Rg2 {[%clk 0:01:19.3]} 43... a5 {[%clk 0:00:04.4]} 44. Rg6+ {[%clk 0:01:19]}
44... Kf7 {[%clk 0:00:04.5]} 45. Rg5 {[%clk 0:01:19.7]} 45... Kf6 {[%clk
0:00:04.4]} 46. Rxh5 {[%clk 0:01:20.3]} 46... a4 {[%clk 0:00:05]} 47. Rh6+
{[%clk 0:01:16.8]} 47... Kf7 {[%clk 0:00:05.1]} 48. bxa4 {[%clk 0:01:07.1]}
48... Bxc4 {[%clk 0:00:04.9]} 49. a5 {[%clk 0:01:07.8]} 49... Bxa2 {[%clk
0:00:01.8]} 50. a6 {[%clk 0:01:08.3]} 50... Rd7 {[%clk 0:00:01.5]} 51. Rh7+
{[%clk 0:01:05.8]} 1-0